fUSD/lending_fUSD_20250214
["ID","MTS","AMOUNT","RATE_DAILY","PERIOD"]
[353113319,1739563903827,-500.0,0.00014356,2]
[353113320,1739563903837,-500.0,0.00014356,2]
[353113321,1739563903847,-878.18,0.00014356,2]
[353113322,1739563903856,-500.0,0.00014356,2]
[353113323,1739563903866,-663.1,0.00014356,2]
[353113324,1739563903876,-274.58777174,0.00014356,2]
[353113325,1739563903886,-1374.74,0.00014356,2]
[353113326,1739563903896,-1402.88,0.00014356,2]
[353113327,1739563903906,-1965.42,0.00014356,2]
[353113328,1739563903915,-487.2048268,0.00014356,2]
[353113329,1739563903925,-500.0,0.00014356,2]
[353113330,1739563903935,-822.86,0.00014356,2]
[353113331,1739563903945,-635.77,0.00014356,2]
[353113332,1739563903955,-1627.29,0.00014356,2]
[353113333,1739563903964,-500.0,0.00014356,2]
[353113334,1739563903974,-500.0,0.00014356,2]
[353113335,1739563903984,-968.89,0.00014356,2]
[353113336,1739563903994,-577.1,0.00014356,2]
[353113337,1739563904003,-500.0,0.00014356,2]
[353113338,1739563904014,-655.39,0.00014356,2]
[353113339,1739563904023,-814.03,0.00014356,2]
[353113340,1739563904034,-151.0,0.00014356,2]
[353113341,1739563904043,-500.0,0.00014356,2]
[353113342,1739563904054,-735.84,0.00014356,2]
[353113343,1739563904063,-1560.32,0.00014356,2]
[353113344,1739563904073,-1807.63,0.00014356,2]
[353113345,1739563904083,-151.0,0.00014356,2]
[353113346,1739563904093,-2596.59,0.00014356,2]
[353113347,1739563904103,-763.37,0.00014356,2]
[353113348,1739563904114,-787.22,0.00014356,2]
[353113349,1739563904124,-151.0,0.00014356,2]
[353113350,1739563904134,-500.0,0.00014356,2]
[353113351,1739563904144,-151.0,0.00014356,2]
[353113352,1739563904154,-1229.5,0.00014356,2]
[353113353,1739563904163,-1636.31,0.00014356,2]
[353113354,1739563904173,-790.1,0.00014356,2]
[353113355,1739563904183,-500.0,0.00014356,2]
[353113356,1739563904192,-1878.57,0.00014356,2]
[353113357,1739563904201,-2044.686389,0.00014356,2]
[353113358,1739563904212,-500.0,0.00014356,2]
[353113359,1739563904222,-707.21,0.00014356,2]
[353113360,1739563904232,-1018.1,0.00014356,2]
[353113361,1739563904242,-1364.44,0.00014356,2]
[353113362,1739563904252,-1211.82,0.00014356,2]
[353113363,1739563904261,-661.68,0.00014356,2]
[353113364,1739563904272,-500.0,0.00014356,2]
[353113365,1739563904282,-331.73193211,0.00014356,2]
[353113366,1739563904292,-4284.85,0.00014356,2]
[353113367,1739563904303,-3602.81,0.00014356,2]
[353113368,1739563904313,-1055.89,0.00014356,2]
[353113369,1739563904323,-1822.84,0.00014356,2]
[353113370,1739563904332,-521.88,0.00014356,2]
[353113371,1739563904341,-1380.9,0.00014356,2]
[353113372,1739563904351,-500.0,0.00014356,2]
[353113373,1739563904360,-500.0,0.00014356,2]
[353113374,1739563904370,-2099.924062,0.00014356,2]
[353113375,1739563904381,-500.0,0.00014356,2]
[353113376,1739563904391,-569.83,0.00014356,2]
[353113377,1739563904401,-500.0,0.00014356,2]
[353113378,1739563904411,-509.46,0.00014356,2]
[353113379,1739563904420,-1973.5,0.00014356,2]
[353113380,1739563904431,-1999.09,0.00014356,2]
[353113381,1739563904440,-1817.13,0.00014356,2]
[353113382,1739563904449,-1754.23,0.00014356,2]
[353113383,1739563904461,-722.58,0.00014356,2]
[353113384,1739563904471,-3163.54,0.00014356,2]
[353113385,1739563904480,-777.3,0.00014356,2]
[353113386,1739563904490,-500.0,0.00014356,2]
[353113387,1739563904499,-1081.68,0.00014356,2]
[353113388,1739563904509,-500.0,0.00014356,2]
[353113389,1739563904518,-3073.51,0.00014356,2]
[353113390,1739563904527,-1849.21,0.00014356,2]
[353113391,1739563904537,-1876.88,0.00014356,2]
[353113392,1739563904547,-1636.36,0.00014356,2]
[353113393,1739563904557,-684.82,0.00014356,2]
[353113394,1739563904566,-1258.75,0.00014356,2]
[353113395,1739563904577,-3451.8,0.00014356,2]
[353113396,1739563904587,-2313.09,0.00014356,2]
[353113397,1739563904597,-525.63,0.00014356,2]
[353113398,1739563904607,-500.0,0.00014356,2]
[353113399,1739563904617,-2440.88,0.00014356,2]
[353113400,1739563904627,-594.57,0.00014356,2]
[353113401,1739563904636,-731.72,0.00014356,2]
[353113402,1739563904646,-641.14,0.00014356,2]
[353113403,1739563904655,-2262.39,0.00014356,2]
[353113404,1739563904665,-500.0,0.00014356,2]
[353113405,1739563904674,-2756.09,0.00014356,2]
[353113406,1739563904684,-500.0,0.00014356,2]
[353113407,1739563904693,-565.96,0.00014356,2]
[353113408,1739563904702,-500.0,0.00014356,2]
[353113409,1739563904712,-524.08577798,0.00014356,2]
[353113410,1739563904721,-500.0,0.00014356,2]
[353113411,1739563904731,-500.0,0.00014356,2]
[353113412,1739563904740,-1958.29,0.00014356,2]
[353113413,1739563904750,-1602.34,0.00014356,2]
[353113414,1739563904760,-500.0,0.00014356,2]
[353113415,1739563904769,-2803.98,0.00014356,2]
[353113416,1739563904778,-500.0,0.00014356,2]
[353113417,1739563904788,-835.64,0.00014356,2]
[353113418,1739563904798,-4057.02,0.00014356,2]
[353113419,1739563904809,-2038.26,0.00014356,2]
[353113420,1739563904818,-1055.1,0.00014356,2]
[353113421,1739563904828,-1332.83,0.00014356,2]
[353113422,1739563904838,-1763.2,0.00014356,2]
[353113423,1739563904847,-500.0,0.00014356,2]
[353113424,1739563905051,-3381.25,0.00014356,2]
[353113425,1739563905061,-500.0,0.00014356,2]
[353113426,1739563905071,-761.43,0.00014356,2]
[353113427,1739563905081,-3279.48,0.00014356,2]
[353113428,1739563905090,-2360.83,0.00014356,2]
[353113429,1739563905099,-1107.76,0.00014356,2]
[353113430,1739563905108,-151.0,0.00014356,2]
[353113431,1739563905118,-1488.96,0.00014356,2]
[353113432,1739563905127,-1740.63,0.00014356,2]
[353113433,1739563905136,-2916.96,0.00014356,2]
[353113434,1739563905147,-1806.9,0.00014356,2]
[353113435,1739563905157,-5082.1,0.00014356,2]
[353113436,1739563905167,-713.2,0.00014356,2]
[353113437,1739563905176,-500.0,0.00014356,2]
[353113438,1739563905186,-2918.13,0.00014356,2]
[353113439,1739563905196,-6582.72,0.00014356,2]
[353113440,1739563905205,-1998.38,0.00014356,2]
[353113441,1739563905215,-500.0,0.00014356,2]
[353113442,1739563905224,-500.0,0.00014356,2]
[353113443,1739563905234,-190.712929,0.00014356,2]
[353113444,1739563905244,-913.59,0.00014356,2]
[353113445,1739563905253,-3560.44,0.00014356,2]
[353113446,1739563905263,-190.712929,0.00014356,2]
[353113447,1739563905272,-500.0,0.00014356,2]
[353113448,1739563905284,-2986.15,0.00014356,2]
[353113449,1739563905295,-3033.09,0.00014356,2]
[353113450,1739563905306,-2105.33,0.00014356,2]
[353113451,1739563905316,-500.0,0.00014356,2]
[353113452,1739563905326,-1872.73,0.00014356,2]
[353113453,1739563905336,-5014.83,0.00014356,2]
[353113454,1739563905345,-4493.7,0.00014356,2]
[353113455,1739563905354,-1363.47,0.00014356,2]
[353113456,1739563905364,-500.0,0.00014356,2]
[353113457,1739563905375,-1318.39,0.00014356,2]
[353113458,1739563905388,-2267.94,0.00014356,2]
[353113459,1739563905398,-749.42,0.00014356,2]
[353113460,1739563905408,-524.87,0.00014356,2]
[353113461,1739563905418,-500.0,0.00014356,2]
[353113462,1739563905430,-1469.98,0.00014356,2]
[353113463,1739563905440,-271.496387,0.00014356,2]
[353113464,1739563905451,-1576.63,0.00014356,2]
[353113465,1739563905462,-500.0,0.00014356,2]
[353113466,1739563905471,-2020.040466,0.00014356,2]
[353113467,1739563905481,-3629.53,0.00014356,2]
[353113468,1739563905491,-1206.13,0.00014356,2]
[353113469,1739563905501,-500.0,0.00014356,2]
[353113470,1739563905511,-946.36,0.00014356,2]
[353113471,1739563905521,-500.0,0.00014356,2]
[353113472,1739563905532,-2020.040466,0.00014356,2]
[353113473,1739563905542,-537.54,0.00014356,2]
[353113474,1739563905552,-3171.97,0.00014356,2]
[353113475,1739563905562,-500.0,0.00014356,2]
[353113476,1739563905572,-2626.49,0.00014356,2]
[353113477,1739563905582,-588.06,0.00014356,2]
[353113478,1739563905592,-500.0,0.00014356,2]
[353113479,1739563905602,-773.79,0.00014356,2]
[353113480,1739563905612,-2568.77,0.00014356,2]
[353113481,1739563905622,-500.0,0.00014356,2]
[353113482,1739563905632,-1944.99,0.00014356,2]
[353113483,1739563905642,-4608.6,0.00014356,2]
[353113484,1739563905652,-500.0,0.00014356,2]
[353113485,1739563905661,-1710.92,0.00014356,2]
[353113486,1739563905673,-2526.46,0.00014356,2]
[353113487,1739563905684,-2579.87,0.00014356,2]
[353113488,1739563905695,-431.76483745,0.00014356,2]
[353113489,1739563905705,-3705.69,0.00014356,2]
[353113490,1739563905715,-500.0,0.00014356,2]
[353113491,1739563905725,-500.0,0.00014356,2]
[353113492,1739563905736,-500.0,0.00014356,2]
[353113493,1739563905746,-3939.13,0.00014356,2]
[353113494,1739563905756,-3249.7,0.00014356,2]
[353113495,1739563905766,-1898.28,0.00014356,2]
[353113496,1739563905775,-3126.6,0.00014356,2]
[353113497,1739563905785,-2747.99,0.00014356,2]
[353113498,1739563905794,-508.99,0.00014356,2]
[353113499,1739563905805,-5009.47,0.00014356,2]
[353113500,1739563905814,-500.0,0.00014356,2]
[353113501,1739563905824,-2056.13,0.00014356,2]
[353113502,1739563905834,-751.62,0.00014356,2]
[353113503,1739563905843,-500.0,0.00014356,2]
[353113504,1739563905853,-500.0,0.00014356,2]
[353113505,1739563905863,-3402.8,0.00014356,2]
[353113506,1739563905873,-3505.75,0.00014356,2]
[353113507,1739563905884,-3153.08,0.00014356,2]
[353113508,1739563905895,-2558.24,0.00014356,2]
[353113509,1739563905905,-500.0,0.00014356,2]
[353113510,1739563905915,-1719.88,0.00014356,2]
[353113511,1739563905924,-1199.35,0.00014356,2]
[353113512,1739563905935,-608.55,0.00014356,2]
[353113513,1739563905945,-500.0,0.00014356,2]
[353113514,1739563905955,-2029.74,0.00014356,2]
[353113515,1739563905965,-3172.24,0.00014356,2]
[353113516,1739563905977,-982.33,0.00014356,2]
[353113517,1739563905987,-1260.25,0.00014356,2]
[353113518,1739563905998,-3830.7,0.00014356,2]
[353113519,1739563906007,-712.2,0.00014356,2]
[353113520,1739563906017,-500.0,0.00014356,2]
[353113521,1739563906027,-4128.85,0.00014356,2]
[353113522,1739563906037,-1339.72,0.00014356,2]
[353113523,1739563906047,-960.59,0.00014356,2]
[353113524,1739563906057,-1280.89,0.00014356,2]
[353113525,1739563906067,-500.0,0.00014356,2]
[353113526,1739563906077,-4003.52,0.00014356,2]
[353113527,1739563906087,-4835.24,0.00014356,2]
[353113528,1739563906097,-500.0,0.00014356,2]
[353113529,1739563906107,-3628.74,0.00014356,2]
[353113530,1739563906116,-5779.5,0.00014356,2]
[353113531,1739563906126,-500.0,0.00014356,2]
[353113532,1739563906135,-888.5,0.00014356,2]
[353113533,1739563906145,-8834.81,0.00014356,2]
[353113534,1739563906155,-872.5,0.00014356,2]
[353113535,1739563906165,-500.0,0.00014356,2]
[353113536,1739563906176,-2332.51,0.00014356,2]
[353113537,1739563906186,-1034.36,0.00014356,2]
[353113538,1739563906195,-2184.82,0.00014356,2]
[353113539,1739563906205,-554.07,0.00014356,2]
[353113540,1739563906215,-1987.19,0.00014356,2]
[353113541,1739563906225,-4912.6,0.00014356,2]
[353113542,1739563906235,-1097.4,0.00014356,2]
[353113543,1739563906246,-500.0,0.00014356,2]
[353113544,1739563906256,-3020.58,0.00014356,2]
[353113545,1739563906266,-1064.67,0.00014356,2]
[353113546,1739563906276,-1083.99,0.00014356,2]
[353113547,1739563906286,-1015.72,0.00014356,2]
[353113548,1739563906296,-151.0,0.00014356,2]
[353113549,1739563906306,-3463.46,0.00014356,2]
[353113550,1739563906315,-743.74,0.00014356,2]
[353113551,1739563906325,-672.87,0.00014356,2]
[353113552,1739563906335,-500.0,0.00014356,2]
[353113553,1739563906346,-585.95,0.00014356,2]
[353113554,1739563906356,-2341.5,0.00014356,2]
[353113555,1739563906365,-1938.45,0.00014356,2]
[353113556,1739563906376,-1204.22,0.00014356,2]
[353113557,1739563906389,-622.41,0.00014356,2]
[353113558,1739563906398,-500.0,0.00014356,2]
[353113559,1739563906407,-165.48300139,0.00014387,2]
[353113560,1739563906418,-2000.0,0.00014399,2]
[353113561,1739563906428,-2000.0,0.00014399,2]
[353113562,1739563906438,-11996.27890593,0.000144,2]
[353113563,1739563906447,-151.0,0.000144,2]
[353113564,1739563906457,-2000.0,0.00014437,2]
[353113565,1739563906467,-889.99,0.00014437,2]
[353113566,1739563906477,-500.0,0.00014437,2]
[353113567,1739563906486,-4729.03,0.00014437,2]
[353113568,1739563906495,-1043.05,0.00014437,2]
[353113569,1739563906505,-2256.26,0.00014437,2]
[353113570,1739563906514,-2819.79,0.00014437,2]
[353113571,1739563906524,-3904.0,0.00014437,2]
[353113572,1739563906534,-2371.08,0.00014437,2]
[353113573,1739563906544,-983.25902987,0.00014437,2]
[353113574,1739563906863,-2481.54097013,0.00014437,2]
[353113575,1739563906874,-683.71,0.00014437,2]
[353113576,1739563906885,-1290.27,0.00014437,2]
[353113577,1739563906895,-3268.9,0.00014437,2]
[353113578,1739563906905,-500.0,0.00014438,2]
[353113579,1739563906915,-500.0,0.00014438,2]
[353113580,1739563906926,-500.0,0.00014438,2]
[353113581,1739563906936,-500.0,0.00014438,2]
[353113582,1739563906947,-942.67,0.00014438,2]
[353113583,1739563906958,-676.71,0.00014438,2]
[353113584,1739563906969,-697.37,0.00014438,2]
[353113585,1739563906979,-500.0,0.00014438,2]
[353113586,1739563906988,-921.36,0.00014438,2]
[353113587,1739563907000,-500.0,0.00014438,2]
[353113588,1739563907011,-739.46,0.00014438,2]
[353113589,1739563907021,-500.0,0.00014438,2]
[353113590,1739563907030,-500.0,0.00014438,2]
[353113591,1739563907040,-616.46,0.00014438,2]
[353113592,1739563907051,-742.2,0.00014438,2]
[353113593,1739563907061,-628.42,0.00014438,2]
[353113594,1739563907071,-505.86,0.00014438,2]
[353113595,1739563907081,-569.87,0.00014438,2]
[353113596,1739563907091,-879.66,0.00014438,2]
[353113597,1739563907101,-500.0,0.00014438,2]
[353113598,1739563907111,-500.0,0.00014438,2]
[353113599,1739563907120,-500.0,0.00014438,2]
[353113600,1739563907130,-500.0,0.00014438,2]
[353113601,1739563907139,-500.0,0.00014438,2]
[353113602,1739563907149,-843.42,0.00014438,2]
[353113603,1739563907159,-500.0,0.00014438,2]
[353113604,1739563907168,-605.7617102,0.00014438,2]
[353113605,1739563907178,-500.0,0.00014438,2]
[353113606,1739563907188,-511.05778762,0.00014438,2]
[353113607,1739563907198,-856.63,0.00014438,2]
[353113608,1739563907207,-208.97217445,0.00014438,2]
[353113609,1739563907217,-661.56,0.00014438,2]
[353113610,1739563907226,-500.0,0.00014438,2]
[353113611,1739563907236,-500.0,0.00014438,2]
[353113612,1739563907246,-645.1638734,0.00014438,2]
[353113613,1739563907256,-531.99,0.00014438,2]
[353113614,1739563907265,-500.0,0.00014438,2]
[353113615,1739563907275,-256.02817852,0.00014438,2]
[353113616,1739563907285,-625.08,0.00014438,2]
[353113617,1739563907295,-853.7,0.00014438,2]
[353113618,1739563907305,-500.0,0.00014438,2]
[353113619,1739563907315,-500.0,0.00014438,2]
[353113620,1739563907326,-676.98,0.00014438,2]
[353113621,1739563907335,-500.0,0.00014438,2]
[353113622,1739563907346,-505.04105566,0.00014438,2]
[353113623,1739563907356,-500.0,0.00014438,2]
[353113624,1739563907365,-950.09,0.00014438,2]
[353113625,1739563907376,-668.29,0.00014438,2]
[353113626,1739563907594,-357.02994661,0.00014438,2]
[353113627,1739563907606,-660.92,0.00014438,2]
[353113628,1739563907617,-995.95,0.00014438,2]
[353113629,1739563907628,-317.87366731,0.00014438,2]
[353113630,1739563908277,-500.0,0.00013698,2]
[353113631,1739563908287,-2.82407246,0.00013698,2]
[353113632,1739563908300,-497.17592754,0.00013698,2]
[353113633,1739563908309,-500.0,0.00013698,2]
[353113634,1739563908319,-500.0,0.00013698,2]
[353113635,1739563908329,-500.0,0.00013698,2]
[353113636,1739563908339,-379.24446321,0.00013698,2]
[353113637,1739563908349,-2247.08,0.0001378,2]
[353113638,1739563908359,-2247.08,0.00013863,2]
[353113639,1739563908369,-2247.08,0.00013945,2]
[353113640,1739563908384,-2247.08,0.00014027,2]
[353113641,1739563908395,-2247.08,0.00014109,2]
[353113642,1739563908405,-2247.08,0.00014191,2]
[353113643,1739563908416,-624.15073034,0.00014273,2]
[353113644,1739563908428,-269.24704914,0.00014273,2]
[353113645,1739563908469,-500.0,0.00013698,2]
[353113646,1739563908480,-702.77684693,0.00014273,2]
[353113647,1739563908548,-500.0,0.00013698,2]
[353113648,1739563908559,-650.90537359,0.00014273,2]
[353113649,1739563908570,-2247.08,0.00014356,2]
[353113650,1739563908580,-182.12633269,0.00014438,2]
[353113651,1739563908590,-500.0,0.00014438,2]
[353113652,1739563908599,-1709.4,0.00014438,2]
[353113653,1739563908609,-500.0,0.00014438,2]
[353113654,1739563908618,-500.0,0.00014438,2]
[353113655,1739563908628,-500.0,0.00014438,2]
[353113656,1739563908638,-500.0,0.00014438,2]
[353113657,1739563908648,-500.0,0.00014438,2]
[353113658,1739563908658,-475.97501028,0.00014438,2]
[353113659,1739563908670,-47.37498972,0.00014438,2]
[353113660,1739563908680,-319.01337185,0.00014438,2]
[353113661,1739563908690,-199.39258648,0.00014438,2]
[353113662,1739563908702,-300.60741352,0.00014438,2]
[353113663,1739563908712,-500.0,0.00014438,2]
[353113664,1739563908722,-755.13,0.00014438,2]
[353113665,1739563908732,-457.18021848,0.00014438,2]
[353113666,1739564384204,-61917.9545,8.973e-05,2]
[353113692,1739564959112,-152.83262897,8.9e-05,2]
[353113693,1739564959136,-500.0,8.973e-05,2]
[353113694,1739564959159,-300.0,9.998e-05,2]
[353113695,1739564959181,-150.0,9.999e-05,2]
[353113696,1739564959206,-500.0,9.999e-05,2]
[353113697,1739564959231,-519.3615425,9.999e-05,2]
[353113698,1739564959255,-501.87629249,9.999e-05,2]
[353113699,1739564959279,-500.0,9.999e-05,2]
[353113700,1739564959302,-316.28390667,9.999e-05,2]
[353113701,1739564959328,-500.0,9.999e-05,2]
[353113702,1739564959351,-500.0,9.999e-05,2]
[353113703,1739564959373,-491.22490177,9.999e-05,2]
[353113704,1739564959395,-35.6868496,9.999e-05,2]
[353113723,1739565032196,-150.0,9.999e-05,2]
[353113727,1739565032206,-464.3131504,9.999e-05,2]
[353113728,1739565032216,-512.2693104,9.999e-05,2]
[353113729,1739565032225,-500.0,9.999e-05,2]
[353113730,1739565032234,-499.99999999,9.999e-05,2]
[353113731,1739565032244,-3772.12665476,0.0001,2]
[353113732,1739565032256,-1414.75,0.0001,2]
[353113733,1739565032294,-5429.36626318,0.0001,2]
[353113734,1739565032306,-24130.36810336,0.0001,2]
[353113735,1739565032321,-583.92895795,0.0001,2]
[353113736,1739565032333,-1701.33493185,0.0001,2]
[353113737,1739565032380,-276.0,0.0001,2]
[353113738,1739565032392,-704.62045861,0.0001,2]
[353113739,1739565032404,-393.04398086,0.0001,2]
[353113740,1739565032416,-1569.56510515,0.0001,2]
[353113741,1739565032428,-412.40818989,0.0001,2]
[353113742,1739565032448,-386.79726953,0.0001,2]
[353113743,1739565032459,-2851.42155941,0.0001,2]
[353113747,1739565032585,-309.0,0.0001,2]
[353113748,1739565032597,-58983.45610469,0.0001,2]
[353114287,1739565038118,-157589.55451322,0.0001,2]
[353114299,1739565038232,-1967.12107538,0.0001,2]
[353114306,1739565038291,-734.35890059,0.0001,2]
[353114313,1739565038353,-2281.87364935,0.0001,2]
[353114506,1739565040351,-1098.06,0.0001,2]
[353114530,1739565040580,-404.0,0.0001,2]
[353114549,1739565040755,-775.97766175,0.0001,2]
[353114551,1739565040767,-262.6439895,0.0001,2]
[353115022,1739565046186,-540.32850058,0.0001,2]
[353115023,1739565046359,-1222.17780059,0.0001,2]
[353115123,1739566007128,-302.36103077,9.8e-05,2]
[353115131,1739566232405,-298.9228,8.973e-05,2]
[353115132,1739566232416,-200.0,9.386e-05,2]
[353115133,1739566232426,-69.25710878,9.72e-05,2]
[353115134,1739566232794,-130.74289122,9.72e-05,2]
[353115135,1739566232805,-1352.83096923,9.8e-05,2]
[353115136,1739566232815,-168.66,9.8e-05,2]
[353115137,1739566232827,-200.0,9.87e-05,2]
[353115138,1739566232838,-1068.15030948,9.91e-05,2]
[353115140,1739566232847,-150.0,9.945e-05,2]
[353115142,1739566232857,-473.55156266,9.973e-05,2]
[353115144,1739566232867,-151.47712649,9.973e-05,2]
[353115146,1739566232876,-500.0,9.973e-05,2]
[353115148,1739566232886,-152.44258082,9.973e-05,2]
[353115150,1739566232896,-454.95833382,9.973e-05,2]
[353115151,1739566232905,-151.32302779,9.973e-05,2]
[353115152,1739566232915,-160.48922461,9.973e-05,2]
[353115153,1739566232924,-500.0,9.973e-05,2]
[353115154,1739566232935,-307.24441322,9.973e-05,2]
[353115155,1739566232945,-170.35751076,9.973e-05,2]
[353115156,1739566232955,-205.13938882,9.973e-05,2]
[353115157,1739566232965,-151.44264627,9.973e-05,2]
[353115158,1739566232974,-159.62332136,9.973e-05,2]
[353115159,1739566232984,-160.35928007,9.973e-05,2]
[353115160,1739566232994,-1070.18,9.973e-05,2]
[353115161,1739566233003,-500.0,9.999e-05,2]
[353115162,1739566233014,-158.88495498,9.999e-05,2]
[353115163,1739566233024,-520.37401546,9.999e-05,2]
[353115165,1739566233034,-160.81549602,9.999e-05,2]
[353115167,1739566233043,-128748.53444694,0.0001,2]
[353115170,1739566233072,-10218.14711069,0.0001,2]
[353115173,1739566233082,-36735.85368931,0.0001,2]
[353115176,1739566233106,-2643.39459498,0.0001,2]
[353115178,1739566233118,-133662.31923964,0.0001,2]
[353115180,1739566233129,-260.89508317,0.0001,2]
[353115182,1739566233139,-169658.4986063,0.0001,2]
[353115222,1739566238273,-11061.47909997,0.0001,2]
[353115223,1739566238368,-2903.63228823,0.0001,2]
[353115224,1739566238455,-129212.27369798,0.0001,2]
[353115225,1739566238468,-1025.15144011,0.0001,2]
[353115231,1739566240429,-280.4742,0.0001,2]
[353115232,1739566240441,-1891.83830736,0.0001,2]
[353115233,1739566240454,-809.13387185,0.0001,2]
[353115234,1739566240485,-340.7249151,0.0001,2]
[353115235,1739566240501,-1764.20999669,0.0001,2]
[353115236,1739566240929,-2237.2350349,0.0001,2]
[353115261,1739566243400,-775920.98854151,0.0001,2]
[353115262,1739566243409,-660.05227062,0.0001,2]
[353115264,1739566243419,-146678.0629402,0.0001,2]
[353115266,1739566243429,-3448.19197,0.0001,2]
[353115267,1739566243438,-873.73273054,0.0001,2]
[353115269,1739566243447,-336.06707169,0.0001,2]
[353115270,1739566243457,-1165.9979789,0.0001,2]
[353115272,1739566243467,-397.84,0.00010137,2]
[353115274,1739566243477,-155.88,0.00010137,2]
[353115275,1739566243486,-1000.0,0.00010521,2]
[353115277,1739566243496,-660.05227056,0.00010763,2]
[353115279,1739566243505,-6469.11,0.00010959,2]
[353115280,1739566243514,-150.0,0.00010964,2]
[353115281,1739566243525,-1453.96540155,0.00011099,2]
[353115282,1739566243535,-1453.96540155,0.00011099,2]
[353115283,1739566243545,-1453.96540155,0.00011099,2]
[353115284,1739566243555,-2691.01553206,0.00011099,2]
[353115285,1739566243565,-2691.01553205,0.00011099,2]
[353115286,1739566243574,-2691.01553205,0.00011099,2]
[353115287,1739566243584,-416.3,0.00011105,2]
[353115288,1739566243594,-197.95,0.00011111,2]
[353115289,1739566243603,-542.27,0.0001117,2]
[353115290,1739566243614,-1453.96540155,0.00011242,2]
[353115291,1739566243623,-2691.01553205,0.00011242,2]
[353115292,1739566243633,-150.0,0.00011255,2]
[353115293,1739566243643,-150.0,0.00011332,2]
[353115294,1739566243653,-150.0,0.00011389,2]
[353115295,1739566243664,-150.0,0.00011412,2]
[353115296,1739566243673,-150.0,0.00011447,2]
[353115297,1739566243684,-23900.0,0.00011474,2]
[353115298,1739566243694,-150.0,0.00011506,2]
[353115299,1739566243704,-1500.0,0.00011522,2]
[353115300,1739566243714,-150.0,0.00011544,2]
[353115301,1739566243724,-150.0,0.00011556,2]
[353115302,1739566243734,-150.0,0.00011585,2]
[353115304,1739566243744,-150.0,0.00011586,2]
[353115305,1739566243753,-660.05227056,0.00011626,2]
[353115306,1739566243763,-150.0,0.00011647,2]
[353115307,1739566243774,-167.57,0.00011668,2]
[353115308,1739566243784,-2751.0,0.00011681,2]
[353115309,1739566243793,-1500.0,0.00011681,2]
[353115310,1739566243803,-1453.96540155,0.0001169,2]
[353115311,1739566243813,-2691.01553205,0.0001169,2]
[353115312,1739566243823,-200.0,0.00011693,2]
[353115313,1739566243832,-150.0,0.000117,2]
[353115314,1739566243842,-150.0,0.00011741,2]
[353115315,1739566243852,-1611.38,0.00011747,2]
[353115316,1739566243862,-151.946,0.00011763,2]
[353115317,1739566243871,-1273.0,0.00011763,2]
[353115318,1739566243881,-2025.0,0.00011763,2]
[353115319,1739566243891,-566.0,0.00011763,2]
[353115320,1739566243901,-1827.0,0.00011763,2]
[353115321,1739566243910,-1265.0,0.00011763,2]
[353115322,1739566243921,-907.0,0.00011763,2]
[353115323,1739566243930,-2955.0,0.00011763,2]
[353115324,1739566243940,-783.0,0.00011763,2]
[353115325,1739566243951,-539.0,0.00011763,2]
[353115326,1739566243961,-4027.0,0.00011763,2]
[353115327,1739566243971,-1009.673,0.00011763,2]
[353115328,1739566243981,-248.752,0.00011763,2]
[353115329,1739566243991,-3915.0,0.00011763,2]
[353115330,1739566244000,-478.161,0.00011763,2]
[353115331,1739566244010,-377.09,0.00011774,2]